[Event "VIII Lorca Open-A 2019"]
[Site "Lorca"]
[Date "2019.12.30"]
[Round "8.3"]
[White "Harutyunian, Tigran K."]
[Black "Villanueva, Mario"]
[Result "1-0"]
[ECO "E16"]
[WhiteElo "2540"]
[BlackElo "2486"]
[Annotator "ChessBase"]
[PlyCount "53"]
[EventDate "2019.12.26"]
[EventType "swiss"]
[EventCountry "ESP"]
[SourceTitle "playchess.com"]
[Source "ChessBase"]
[SourceQuality "1"]
[TimeControl "5400+30"]

1. d4 {[%emt 0:00:41]} e6 {[%emt 0:03:20]} 2. Nf3 {[%emt 0:00:54]} Nf6 {[%emt 0:00:43]} 3. c4 {[%emt 0:00:40]} b6 {[%emt 0:00:07]} 4. g3 {[%emt 0:00:23]} Bb7 {[%emt 0:01:00]} 5. Bg2 {[%emt 0:00:15]} Bb4+ {[%emt 0:00:06]} 6. Bd2 {[%emt 0:01:52]} a5 {[%emt 0:00:13]} 7. O-O {[%emt 0:01:11]} O-O {[%emt 0:00:21]} 8. Nc3 {[%emt 0:02:38]} d6 {[%emt 0:00:10]} 9. Rc1 {[%emt 0:04:08]} Bxc3 {[%emt 0:06:02]} 10. Bxc3 {[%emt 0:02:44]} Be4 {[%emt 0:01:33]} 11. Re1 {[%emt 0:02:15]} Nbd7 {[%emt 0:01:58]} 12. Bf1 {[%emt 0:00:32]} h6 {[%emt 0:08:35]} 13. Nd2 {[%emt 0:01:11]} Bg6 {[%emt 0:00:06]} 14. Bg2 {[%emt 0:06:02]} d5 {[%emt 0:04:11]} 15. Qa4 {[%emt 0:02:18]} c5 {[%emt 0:02:31]} 16. cxd5 {[%emt 0:04:09]} exd5 {[%emt 0:02:58]} 17. dxc5 {[%emt 0:14:58]} Nxc5 {[%emt 0:04:09]} 18. Qf4 {[%emt 0:00:29]} Nfe4 {[%emt 0:09:35]} 19. Nxe4 {[%emt 0:00:58]} Bxe4 {[%emt 0:01:09]} 20. f3 {[%emt 0:03:35]} Bg6 {[%emt 0:01:47]} 21. Rcd1 {[%emt 0:01:17]} Ra7 {[%emt 0:12:21]} 22. Qd4 {[%emt 0:06:43]} f6 {[%emt 0:00:08]} 23. e4 {[%emt 0:01:19]} Rd7 {[%emt 0:01:57]} 24. exd5 {[%emt 0:05:29]} Re8 {[%emt 0:01:20]} 25. Rxe8+ {[%emt 0:04:39]} Bxe8 {[%emt 0:02:21]} 26. Bxa5 {[%emt 0:01:37]} Bf7 {[%emt 0:00:05]} 27. Qxc5 {[%emt 0:01:02]} 1-0

[Event "VIII Lorca Open-A 2019"]
[Site "Lorca"]
[Date "2019.12.30"]
[Round "8.4"]
[White "Klekowski, Maciej"]
[Black "Narciso Dublan, Marc"]
[Result "1/2-1/2"]
[ECO "D94"]
[WhiteElo "2514"]
[BlackElo "2516"]
[Annotator "ChessBase"]
[PlyCount "36"]
[EventDate "2019.12.26"]
[EventType "swiss"]
[EventCountry "ESP"]
[SourceTitle "playchess.com"]
[Source "ChessBase"]
[SourceQuality "1"]
[TimeControl "5400+30"]

1. d4 {[%emt 1:30:30]} d5 {[%emt 1:30:30]} 2. c4 {[%emt 0:00:30]} c6 {[%emt 0:00:30]} 3. Nf3 {[%emt 0:00:30]} Nf6 {[%emt 0:00:30]} 4. e3 {[%emt 0:00:30]} g6 {[%emt 0:00:30]} 5. Nc3 {[%emt 0:00:30]} Bg7 {[%emt 0:00:30]} 6. Bd3 {[%emt 0:00:30]} O-O {[%emt 0:00:30]} 7. O-O {[%emt 0:00:30]} Bg4 {[%emt 0:00:30]} 8. h3 {[%emt 0:00:30]} Bxf3 {[%emt 0:00:30]} 9. Qxf3 {[%emt 0:00:30]} e6 {[%emt 0:00:30]} 10. Rd1 {[%emt 0:00:30]} Nbd7 {[%emt 0:00:30]} 11. e4 {[%emt 0:00:30]} e5 {[%emt 0:00:30]} 12. dxe5 {[%emt 0:00:30]} Nxe5 {[%emt 0:00:30]} 13. Qe2 {[%emt 0:00:30]} d4 {[%emt 0:00:30]} 14. Bc2 {[%emt 0:00:30]} Nfd7 {[%emt 0:00:30]} 15. Na4 {[%emt 0:00:30]} Qa5 {[%emt 0:00:30]} 16. Bd2 {[%emt 0:00:30]} Qa6 {[%emt 0:00:30]} 17. b3 {[%emt 0:00:30]} Rfe8 {[%emt 0:00:30]} 18. Rac1 {[%emt 0:00:30]} Rad8 {[%emt 0:00:30]} 1/2-1/2

[Event "VIII Lorca Open-A 2019"]
[Site "Lorca"]
[Date "2019.12.30"]
[Round "8.5"]
[White "Sadzikowski, Daniel"]
[Black "Lopez Martinez, Josep Manuel"]
[Result "1/2-1/2"]
[ECO "E11"]
[WhiteElo "2504"]
[BlackElo "2561"]
[Annotator "ChessBase"]
[PlyCount "138"]
[EventDate "2019.12.26"]
[EventType "swiss"]
[EventCountry "ESP"]
[SourceTitle "playchess.com"]
[Source "ChessBase"]
[SourceQuality "1"]
[TimeControl "5400+30"]

1. d4 {[%emt 0:00:00]} e6 {[%emt 0:10:16]} 2. c4 {[%emt 0:00:14]} Bb4+ {[%emt 0:03:04]} 3. Bd2 {[%emt 0:00:28]} a5 {[%emt 0:00:13]} 4. Nf3 {[%emt 0:01:27]} Nf6 {[%emt 0:02:20]} 5. Nc3 {[%emt 0:00:27]} O-O {[%emt 0:01:28]} 6. e3 {[%emt 0:00:26]} d5 {[%emt 0:01:23]} 7. Rc1 {[%emt 0:00:21]} Nbd7 {[%emt 0:03:41]} 8. Be2 {[%emt 0:07:24]} c6 {[%emt 0:10:11]} 9. O-O {[%emt 0:01:59]} Qe7 {[%emt 0:05:27]} 10. a3 {[%emt 0:25:28]} dxc4 {[%emt 0:01:27]} 11. Bxc4 {[%emt 0:01:23]} Bd6 {[%emt 0:00:18]} 12. Qc2 {[%emt 0:05:15]} e5 {[%emt 0:04:51]} 13. h3 {[%emt 0:00:18]} exd4 {[%emt 0:07:46]} 14. exd4 {[%emt 0:00:35]} Nb6 {[%emt 0:00:38]} 15. Rfe1 {[%emt 0:01:49]} Qd8 {[%emt 0:00:18]} 16. Ba2 {[%emt 0:06:47]} Nfd5 {[%emt 0:09:34]} 17. Bg5 {[%emt 0:01:15]} f6 {[%emt 0:01:14]} 18. Bb1 {[%emt 0:00:14]} g6 {[%emt 0:00:30]} 19. Bh6 {[%emt 0:00:28]} Rf7 {[%emt 0:05:25]} 20. Ne4 {[%emt 0:05:25]} Bf8 {[%emt 0:01:56]} 21. Bxf8 {[%emt 0:01:58]} Qxf8 {[%emt 0:02:13]} 22. Nc5 {[%emt 0:01:01]} Bf5 {[%emt 0:00:37]} 23. Qd2 {[%emt 0:00:24]} Bxb1 {[%emt 0:00:34]} 24. Rxb1 {[%emt 0:00:07]} Nc4 {[%emt 0:03:53]} 25. Qc2 {[%emt 0:20:50]} Nd6 {[%emt 0:00:17]} 26. Qd2 {[%emt 0:01:31]} Re7 {[%emt 0:01:08]} 27. Rxe7 {[%emt 0:00:12]} Qxe7 {[%emt 0:00:08]} 28. Re1 {[%emt 0:00:12]} Qf7 {[%emt 0:00:21]} 29. Nh2 {[%emt 0:00:54]} Nf5 {[%emt 0:10:14]} 30. Ng4 {[%emt 0:01:22]} b6 {[%emt 0:00:47]} 31. Ne4 {[%emt 0:02:24]} Kg7 {[%emt 0:00:21]} 32. Ng3 {[%emt 0:02:44]} Nxg3 {[%emt 0:00:51]} 33. fxg3 {[%emt 0:11:08]} Re8 34. Kf2 {[%emt 0:00:00]} Rxe1 {[%emt 0:03:06]} 35. Qxe1 {[%emt 0:00:00]} Qd7 {[%emt 0:02:47]} 36. Qe4 {[%emt 0:00:00]} Qe7 {[%emt 0:02:40]} 37. Qxe7+ {[%emt 0:00:00]} Nxe7 {[%emt 0:00:02]} 38. Ne3 {[%emt 0:00:00]} Kf7 {[%emt 0:00:13]} 39. Nc4 {[%emt 0:00:00]} Nd5 {[%emt 0:00:11]} 40. g4 {[%emt 0:00:00]} Ke6 {[%emt 0:00:06]} 41. Kf3 {[%emt 0:00:00]} a4 {[%emt 0:00:40]} 42. Ke4 {[%emt 0:00:00]} b5 {[%emt 0:01:05]} 43. Ne3 {[%emt 0:00:00]} Nb6 {[%emt 0:00:28]} 44. Kd3 {[%emt 0:00:00]} Kd6 {[%emt 0:01:01]} 45. Kc3 {[%emt 0:00:00]} Na8 {[%emt 0:01:53]} 46. Kd3 {[%emt 0:00:09]} Nc7 {[%emt 0:00:08]} 47. Kc3 {[%emt 0:00:04]} Ne6 {[%emt 0:01:08]} 48. Kd3 {[%emt 0:00:02]} c5 {[%emt 0:01:02]} 49. dxc5+ {[%emt 0:00:13]} Kxc5 {[%emt 0:00:02]} 50. Kc3 {[%emt 0:00:27]} Nf4 {[%emt 0:00:15]} 51. b4+ {[%emt 0:02:54]} axb3 {[%emt 0:00:44]} 52. Kxb3 {[%emt 0:00:02]} Kd4 {[%emt 0:01:15]} 53. Nc2+ {[%emt 0:00:25]} Kd3 {[%emt 0:00:18]} 54. Nb4+ {[%emt 0:00:37]} Ke4 {[%emt 0:00:19]} 55. Na2 {[%emt 0:00:38]} Nxg2 {[%emt 0:00:47]} 56. Nc3+ {[%emt 0:00:04]} Kd3 {[%emt 0:00:29]} 57. Nxb5 {[%emt 0:00:03]} f5 {[%emt 0:00:12]} 58. gxf5 {[%emt 0:02:37]} gxf5 {[%emt 0:00:03]} 59. a4 {[%emt 0:00:10]} f4 {[%emt 0:02:05]} 60. a5 {[%emt 0:00:01]} f3 {[%emt 0:02:29]} 61. a6 {[%emt 0:00:01]} f2 {[%emt 0:00:22]} 62. a7 {[%emt 0:00:02]} f1=Q {[%emt 0:00:07]} 63. a8=Q {[%emt 0:00:04]} Qb1+ {[%emt 0:00:43]} 64. Ka4 {[%emt 0:00:05]} Qc2+ {[%emt 0:01:17]} 65. Ka3 {[%emt 0:01:56]} Qc5+ {[%emt 0:00:20]} 66. Ka4 {[%emt 0:01:14]} Qc4+ {[%emt 0:00:05]} 67. Ka3 {[%emt 0:00:05]} Ne3 {[%emt 0:00:26]} 68. Qd8+ {[%emt 0:01:20]} Kc2 {[%emt 0:01:08]} 69. Qc7 {[%emt 0:00:44]} Qxc7 {[%emt 0:00:36]} 1/2-1/2

[Event "VIII Lorca Open-A 2019"]
[Site "Lorca"]
[Date "2019.12.30"]
[Round "8.6"]
[White "Sivuk, Vitaly"]
[Black "Bobadilla Viera, Jorge Samuel"]
[Result "1/2-1/2"]
[ECO "E55"]
[WhiteElo "2588"]
[BlackElo "2339"]
[Annotator "ChessBase"]
[PlyCount "174"]
[EventDate "2019.12.26"]
[EventType "swiss"]
[EventCountry "ESP"]
[SourceTitle "playchess.com"]
[Source "ChessBase"]
[SourceQuality "1"]
[TimeControl "5400+30"]

1. d4 {[%emt 1:30:30]} Nf6 {[%emt 1:30:30]} 2. c4 {[%emt 0:00:30]} e6 {[%emt 0:00:30]} 3. Nc3 {[%emt 0:00:30]} Bb4 {[%emt 0:00:30]} 4. Nf3 {[%emt 0:00:30]} c5 {[%emt 0:00:30]} 5. e3 {[%emt 0:00:30]} O-O {[%emt 0:00:30]} 6. Bd3 {[%emt 0:00:30]} d5 {[%emt 0:00:30]} 7. O-O {[%emt 0:00:30]} dxc4 {[%emt 0:00:30]} 8. Bxc4 {[%emt 0:00:30]} Nbd7 {[%emt 0:00:30]} 9. a3 {[%emt 0:00:30]} cxd4 {[%emt 0:00:30]} 10. axb4 {[%emt 0:00:30]} dxc3 {[%emt 0:00:30]} 11. bxc3 {[%emt 0:00:30]} Qc7 {[%emt 0:00:30]} 12. Bd3 {[%emt 0:00:30]} Qxc3 {[%emt 0:00:30]} 13. Ba3 {[%emt 0:00:30]} Ne5 {[%emt 0:00:30]} 14. Nxe5 {[%emt 0:00:30]} Qxe5 {[%emt 0:00:30]} 15. b5 {[%emt 0:00:30]} Re8 {[%emt 0:00:30]} 16. Qc2 {[%emt 0:00:30]} Ng4 {[%emt 0:00:30]} 17. g3 {[%emt 0:00:30]} Qh5 {[%emt 0:00:30]} 18. h4 {[%emt 0:00:30]} e5 {[%emt 0:00:30]} 19. Bc5 {[%emt 0:00:30]} e4 {[%emt 0:00:30]} 20. Bxe4 {[%emt 0:00:30]} Rxe4 {[%emt 0:00:30]} 21. Qxe4 {[%emt 0:00:30]} Qxc5 {[%emt 0:00:30]} 22. Rfc1 {[%emt 0:00:30]} Qf8 {[%emt 0:00:30]} 23. Rc7 {[%emt 0:00:30]} Nf6 {[%emt 0:00:30]} 24. Qe5 {[%emt 0:00:30]} a5 {[%emt 0:00:30]} 25. bxa6 {[%emt 0:00:30]} bxa6 {[%emt 0:00:30]} 26. Qd4 {[%emt 0:00:30]} Be6 {[%emt 0:00:30]} 27. Ra7 {[%emt 0:00:30]} Rd8 {[%emt 0:00:30]} 28. Qa4 {[%emt 0:00:30]} Bc8 {[%emt 0:00:30]} 29. Rd1 {[%emt 0:00:30]} Re8 {[%emt 0:00:30]} 30. Qc6 {[%emt 0:00:30]} h5 {[%emt 0:00:30]} 31. Qd6 {[%emt 0:00:30]} Qxd6 {[%emt 0:00:30]} 32. Rxd6 {[%emt 0:00:30]} Kf8 {[%emt 0:00:30]} 33. Rc7 {[%emt 0:00:30]} a5 {[%emt 0:00:30]} 34. Ra7 {[%emt 0:00:30]} Be6 {[%emt 0:00:30]} 35. Rxa5 {[%emt 0:00:30]} Rc8 {[%emt 0:00:30]} 36. Rd1 {[%emt 0:00:30]} g6 {[%emt 0:00:30]} 37. f3 {[%emt 0:00:30]} Rc3 {[%emt 0:00:30]} 38. Re1 {[%emt 0:00:30]} Rc2 {[%emt 0:00:30]} 39. Rf1 {[%emt 0:00:30]} Nd5 {[%emt 0:00:30]} 40. Ra3 {[%emt 0:00:30]} Re2 {[%emt 0:00:30]} 41. e4 {[%emt 0:00:30]} Ne3 {[%emt 0:00:30]} 42. Rf2 {[%emt 0:00:30]} Re1+ {[%emt 0:00:30]} 43. Kh2 {[%emt 0:00:30]} Kg7 {[%emt 0:00:30]} 44. Ra5 {[%emt 0:00:30]} Kf6 {[%emt 0:00:30]} 45. Rc5 {[%emt 0:00:30]} Ke7 {[%emt 0:00:30]} 46. Ra5 {[%emt 0:00:30]} Kd6 {[%emt 0:00:30]} 47. Rd2+ {[%emt 0:00:30]} Kc6 {[%emt 0:00:30]} 48. Rf2 {[%emt 0:00:30]} Kb6 {[%emt 0:00:30]} 49. Rg5 {[%emt 0:00:30]} Nc4 {[%emt 0:00:30]} 50. Kg2 {[%emt 0:00:30]} Kc6 {[%emt 0:00:30]} 51. Rc2 {[%emt 0:00:30]} Kd6 {[%emt 0:00:30]} 52. Kf2 {[%emt 0:00:30]} Rh1 {[%emt 0:00:30]} 53. Rc3 {[%emt 0:00:30]} Rh2+ {[%emt 0:00:30]} 54. Kg1 {[%emt 0:00:30]} Rb2 {[%emt 0:00:30]} 55. Rd3+ {[%emt 0:00:30]} Ke7 {[%emt 0:00:30]} 56. Rc5 {[%emt 0:00:30]} Kf6 {[%emt 0:00:30]} 57. Rc3 {[%emt 0:00:30]} Nd2 {[%emt 0:00:30]} 58. Ra5 {[%emt 0:00:30]} Nc4 {[%emt 0:00:30]} 59. Ra1 {[%emt 0:00:30]} Ne5 {[%emt 0:00:30]} 60. Rf1 {[%emt 0:00:30]} Bh3 {[%emt 0:00:30]} 61. Rf2 {[%emt 0:00:30]} Rb1+ {[%emt 0:00:30]} 62. Kh2 {[%emt 0:00:30]} Be6 {[%emt 0:00:30]} 63. Kg2 {[%emt 0:00:30]} Nc4 {[%emt 0:00:30]} 64. Rfc2 {[%emt 0:00:30]} Ne5 {[%emt 0:00:30]} 65. Rc1 {[%emt 0:00:30]} Rb4 {[%emt 0:00:30]} 66. R1c2 {[%emt 0:00:30]} Rd4 {[%emt 0:00:30]} 67. Re3 {[%emt 0:00:30]} Rd1 {[%emt 0:00:30]} 68. Rec3 {[%emt 0:00:30]} Nd3 {[%emt 0:00:30]} 69. Re2 {[%emt 0:00:30]} Ke5 {[%emt 0:00:30]} 70. Ra3 {[%emt 0:00:30]} Kd4 {[%emt 0:00:30]} 71. Ra8 {[%emt 0:00:30]} Bc4 {[%emt 0:00:30]} 72. Kh2 {[%emt 0:00:30]} Rc1 {[%emt 0:00:30]} 73. Rd8+ {[%emt 0:00:30]} Kc3 {[%emt 0:00:30]} 74. Rc8 {[%emt 0:00:30]} Ne5 {[%emt 0:00:30]} 75. Rf2 {[%emt 0:00:30]} Kd4 {[%emt 0:00:30]} 76. Ra8 {[%emt 0:00:30]} Ke3 {[%emt 0:00:30]} 77. Kg2 {[%emt 0:00:30]} Rc3 {[%emt 0:00:30]} 78. g4 {[%emt 0:00:30]} Nd3 {[%emt 0:00:30]} 79. gxh5 {[%emt 0:00:30]} Nxf2 {[%emt 0:00:30]} 80. h6 {[%emt 0:00:30]} Nd3 {[%emt 0:00:30]} 81. h7 {[%emt 0:00:30]} Kf4 {[%emt 0:00:30]} 82. h8=Q {[%emt 0:00:30]} Rc2+ {[%emt 0:00:30]} 83. Kg1 {[%emt 0:00:30]} Rc1+ {[%emt 0:00:30]} 84. Kg2 {[%emt 0:00:30]} Rc2+ {[%emt 0:00:30]} 85. Kg1 {[%emt 0:00:30]} Kg3 {[%emt 0:00:30]} 86. Qb8+ {[%emt 0:00:30]} Nf4 {[%emt 0:00:30]} 87. Ra1 {[%emt 0:00:30]} Rg2+ {[%emt 0:00:30]} 1/2-1/2

[Event "VIII Lorca Open-A 2019"]
[Site "Lorca"]
[Date "2019.12.30"]
[Round "8.7"]
[White "Pogorelov, Ruslan"]
[Black "Maiorov, Nikita"]
[Result "1/2-1/2"]
[ECO "E17"]
[WhiteElo "2377"]
[BlackElo "2523"]
[Annotator "ChessBase"]
[PlyCount "123"]
[EventDate "2019.12.26"]
[EventType "swiss"]
[EventCountry "ESP"]
[SourceTitle "playchess.com"]
[Source "ChessBase"]
[SourceQuality "1"]
[TimeControl "5400+30"]

1. Nf3 {[%emt 0:01:38]} Nf6 {[%emt 0:07:31]} 2. c4 {[%emt 0:00:07]} b6 {[%emt 0:00:31]} 3. g3 {[%emt 0:00:06]} Bb7 {[%emt 0:00:08]} 4. Bg2 {[%emt 0:00:06]} e6 {[%emt 0:00:06]} 5. O-O {[%emt 0:00:17]} Be7 {[%emt 0:00:04]} 6. Nc3 {[%emt 0:00:09]} O-O {[%emt 0:00:08]} 7. Re1 {[%emt 0:00:09]} d5 {[%emt 0:00:42]} 8. cxd5 {[%emt 0:00:07]} exd5 {[%emt 0:00:03]} 9. d4 {[%emt 0:00:09]} Nbd7 {[%emt 0:02:07]} 10. Bf4 {[%emt 0:01:09]} Ne4 {[%emt 0:02:23]} 11. Qc2 {[%emt 0:05:01]} Nxc3 {[%emt 0:03:34]} 12. bxc3 {[%emt 0:04:42]} c5 {[%emt 0:00:51]} 13. Ne5 {[%emt 0:04:35]} Nf6 {[%emt 0:02:20]} 14. dxc5 {[%emt 0:07:54]} Bxc5 {[%emt 0:00:11]} 15. Nd3 {[%emt 0:03:43]} Bd6 {[%emt 0:06:16]} 16. Rad1 {[%emt 0:01:53]} Rc8 {[%emt 0:00:22]} 17. Qb3 {[%emt 0:00:39]} Qe7 {[%emt 0:24:39]} 18. Bxd6 {[%emt 0:01:41]} Qxd6 {[%emt 0:00:58]} 19. Nf4 {[%emt 0:01:08]} Qe5 {[%emt 0:00:30]} 20. Rd3 {[%emt 0:09:40]} Ne4 {[%emt 0:05:13]} 21. Nxd5 {[%emt 0:15:02]} Bxd5 {[%emt 0:09:18]} 22. Qxd5 {[%emt 0:03:30]} Qxd5 {[%emt 0:00:04]} 23. Rxd5 {[%emt 0:00:13]} Nxc3 {[%emt 0:00:03]} 24. Rd7 {[%emt 0:00:12]} a5 {[%emt 0:00:08]} 25. Bd5 {[%emt 0:01:41]} b5 {[%emt 0:10:17]} 26. e4 {[%emt 0:01:04]} b4 {[%emt 0:00:14]} 27. Re3 {[%emt 0:12:43]} a4 {[%emt 0:00:50]} 28. Rb7 {[%emt 0:01:52]} Nxd5 {[%emt 0:09:51]} 29. exd5 {[%emt 0:00:02]} Rb8 {[%emt 0:00:07]} 30. Ree7 {[%emt 0:02:05]} b3 {[%emt 0:12:13]} 31. axb3 {[%emt 0:01:04]} axb3 {[%emt 0:00:10]} 32. Rxf7 {[%emt 0:00:17]} Rxb7 {[%emt 0:00:07]} 33. Rxb7 {[%emt 0:00:12]} Rd8 {[%emt 0:00:01]} 34. Rxb3 {[%emt 0:00:13]} Rxd5 {[%emt 0:00:03]} 35. Kg2 {[%emt 0:00:27]} h6 {[%emt 0:00:05]} 36. Rb6 {[%emt 0:00:17]} Kh7 {[%emt 0:00:05]} 37. Re6 {[%emt 0:00:51]} Ra5 {[%emt 0:00:04]} 38. Kf3 {[%emt 0:00:41]} Rf5+ {[%emt 0:00:13]} 39. Ke3 {[%emt 0:00:16]} Ra5 {[%emt 0:00:25]} 40. f3 {[%emt 0:02:09]} Rb5 {[%emt 0:00:15]} 41. h4 {[%emt 0:00:24]} Rb3+ {[%emt 0:00:17]} 42. Kf4 {[%emt 0:00:37]} Rb4+ {[%emt 0:00:07]} 43. Re4 {[%emt 0:00:27]} Rb5 {[%emt 0:00:18]} 44. Re5 {[%emt 0:01:35]} Rb4+ {[%emt 0:00:03]} 45. Kf5 {[%emt 0:01:07]} Rb3 {[%emt 0:00:27]} 46. Kg4 {[%emt 0:00:12]} Rb4+ {[%emt 0:00:31]} 47. f4 {[%emt 0:00:20]} Kg6 {[%emt 0:00:16]} 48. h5+ {[%emt 0:00:19]} Kf7 {[%emt 0:00:16]} 49. Kf5 {[%emt 0:00:21]} Rb7 {[%emt 0:00:22]} 50. Rc5 {[%emt 0:01:56]} Ra7 {[%emt 0:00:08]} 51. g4 {[%emt 0:00:12]} Rb7 {[%emt 0:00:20]} 52. Ke5 {[%emt 0:00:44]} Re7+ {[%emt 0:00:21]} 53. Kd4 {[%emt 0:03:06]} Re1 {[%emt 0:02:01]} 54. Rc7+ {[%emt 0:00:25]} Kf6 {[%emt 0:01:07]} 55. Rc6+ {[%emt 0:00:17]} Kf7 {[%emt 0:00:04]} 56. g5 {[%emt 0:00:47]} hxg5 {[%emt 0:00:55]} 57. fxg5 {[%emt 0:00:08]} Rh1 {[%emt 0:02:07]} 58. Ke4 {[%emt 0:05:55]} Rxh5 {[%emt 0:00:51]} 59. Kf5 {[%emt 0:00:15]} g6+ {[%emt 0:00:13]} 60. Rxg6 {[%emt 0:00:12]} Rh1 {[%emt 0:00:07]} 61. Rf6+ {[%emt 0:00:11]} Kg7 {[%emt 0:00:04]} 62. Rg6+ {[%emt 0:00:12]} 1/2-1/2

[Event "VIII Lorca Open-A 2019"]
[Site "Lorca"]
[Date "2019.12.30"]
[Round "8.8"]
[White "Sosa, Tomas"]
[Black "Ajay Karthikeyan"]
[Result "1-0"]
[ECO "B36"]
[WhiteElo "2520"]
[BlackElo "2203"]
[Annotator "ChessBase"]
[PlyCount "133"]
[EventDate "2019.12.26"]
[EventType "swiss"]
[EventCountry "ESP"]
[SourceTitle "playchess.com"]
[Source "ChessBase"]
[SourceQuality "1"]
[TimeControl "5400+30"]

1. e4 {[%emt 0:06:26]} c5 {[%emt 0:00:00]} 2. Nf3 {[%emt 0:00:07]} g6 {[%emt 0:00:00]} 3. d4 {[%emt 0:00:11]} cxd4 {[%emt 0:00:00]} 4. Nxd4 {[%emt 0:00:08]} Nc6 {[%emt 0:00:00]} 5. c4 {[%emt 0:00:12]} Nf6 {[%emt 0:00:00]} 6. Nc3 {[%emt 0:00:07]} d6 {[%emt 0:00:00]} 7. Be2 {[%emt 0:00:54]} Nxd4 {[%emt 0:00:01]} 8. Qxd4 {[%emt 0:00:06]} Bg7 {[%emt 0:00:03]} 9. Bg5 {[%emt 0:03:17]} O-O {[%emt 0:00:06]} 10. Qd2 {[%emt 0:00:08]} a5 {[%emt 0:00:37]} 11. O-O {[%emt 0:06:12]} a4 {[%emt 0:00:01]} 12. Rfd1 {[%emt 0:00:31]} Qa5 {[%emt 0:00:33]} 13. Bxf6 {[%emt 0:14:15]} Bxf6 {[%emt 0:00:08]} 14. Nd5 {[%emt 0:00:05]} Kg7 {[%emt 0:01:40]} 15. Nxf6 {[%emt 0:01:06]} Qxd2 {[%emt 0:00:24]} 16. Nh5+ {[%emt 0:00:15]} gxh5 {[%emt 0:00:06]} 17. Rxd2 {[%emt 0:00:04]} Be6 {[%emt 0:04:21]} 18. Rb1 {[%emt 0:02:31]} Ra5 {[%emt 0:05:58]} 19. f3 {[%emt 0:01:48]} h4 {[%emt 0:09:29]} 20. Kf2 {[%emt 0:00:52]} Rc8 {[%emt 0:02:53]} 21. b3 {[%emt 0:00:26]} axb3 {[%emt 0:00:03]} 22. axb3 {[%emt 0:00:07]} Ra3 {[%emt 0:00:52]} 23. h3 {[%emt 0:03:13]} Rc6 {[%emt 0:05:41]} 24. Bd3 {[%emt 0:06:34]} h6 {[%emt 0:02:51]} 25. Ke3 {[%emt 0:02:23]} Kf6 {[%emt 0:00:04]} 26. f4 {[%emt 0:07:54]} Rc8 {[%emt 0:10:23]} 27. Kd4 {[%emt 0:03:02]} Rg8 {[%emt 0:00:54]} 28. e5+ {[%emt 0:07:52]} dxe5+ {[%emt 0:00:06]} 29. fxe5+ {[%emt 0:00:01]} Kg5 {[%emt 0:00:01]} 30. Rf2 {[%emt 0:05:23]} Rd8+ {[%emt 0:01:07]} 31. Kc3 {[%emt 0:00:24]} Rxd3+ {[%emt 0:02:55]} 32. Kxd3 {[%emt 0:01:33]} Bf5+ {[%emt 0:00:02]} 33. Rxf5+ Kxf5 {[%emt 0:00:02]} 34. Kd4 {[%emt 0:00:15]} Ra2 {[%emt 0:00:42]} 35. Kc5 {[%emt 0:03:33]} Ra6 {[%emt 0:05:40]} 36. Kd5 {[%emt 0:01:00]} Ra5+ {[%emt 0:00:21]} 37. c5 {[%emt 0:00:31]} Ra2 {[%emt 0:00:24]} 38. Rf1+ {[%emt 0:01:00]} Kg6 {[%emt 0:00:01]} 39. Rf4 {[%emt 0:00:51]} Rxg2 {[%emt 0:00:10]} 40. Rxh4 {[%emt 0:00:22]} Kg5 {[%emt 0:03:24]} 41. Rg4+ {[%emt 0:09:32]} Rxg4 {[%emt 0:00:06]} 42. hxg4 {[%emt 0:00:00]} Kxg4 {[%emt 0:00:09]} 43. b4 {[%emt 0:00:10]} h5 {[%emt 0:00:04]} 44. b5 {[%emt 0:00:11]} h4 {[%emt 0:00:08]} 45. c6 {[%emt 0:00:07]} bxc6+ {[%emt 0:01:14]} 46. bxc6 {[%emt 0:00:17]} h3 {[%emt 0:00:01]} 47. c7 {[%emt 0:00:13]} h2 {[%emt 0:00:03]} 48. c8=Q+ {[%emt 0:00:06]} e6+ {[%emt 0:00:03]} 49. Kd6 {[%emt 0:01:11]} h1=Q {[%emt 0:00:12]} 50. Qg8+ {[%emt 0:00:04]} Kf4 {[%emt 0:00:17]} 51. Qxf7+ {[%emt 0:00:05]} Ke3 {[%emt 0:00:01]} 52. Qxe6 {[%emt 0:01:00]} Qh8 {[%emt 0:06:24]} 53. Qb3+ {[%emt 0:03:25]} Ke4 {[%emt 0:01:30]} 54. Qb7+ {[%emt 0:00:25]} Kf4 {[%emt 0:04:38]} 55. Qf7+ {[%emt 0:00:18]} Kg5 {[%emt 0:01:33]} 56. Qe7+ {[%emt 0:00:45]} Kf5 {[%emt 0:01:47]} 57. Qd7+ {[%emt 0:02:09]} Kg5 {[%emt 0:05:57]} 58. Qe7+ {[%emt 0:00:05]} Kf5 {[%emt 0:00:48]} 59. Qd7+ {[%emt 0:00:19]} Kg5 {[%emt 0:01:48]} 60. e6 {[%emt 0:05:28]} Qd4+ {[%emt 0:00:37]} 61. Kc6 {[%emt 0:00:47]} Qc4+ {[%emt 0:00:57]} 62. Kb7 {[%emt 0:00:08]} Kf6 {[%emt 0:16:44]} 63. Qd8+ {[%emt 0:00:24]} Kg6 {[%emt 0:02:31]} 64. Qe8+ {[%emt 0:03:18]} Kg7 {[%emt 0:01:49]} 65. Qf7+ {[%emt 0:00:40]} Kh8 {[%emt 0:00:45]} 66. Qf6+ {[%emt 0:00:10]} Kg8 {[%emt 0:00:54]} 67. Qd8+ {[%emt 0:00:23]} 1-0